bitfinex-derivatives/quotes_ETHF0:USTF0_20250404
["timestamp","ask_amount","ask_price","bid_price","bid_amount"]
[1743760149341,1.09154,1832.5,1832.4,2.5865]
[1743760149534,58.556,1832.6,1832.4,2.5865]
[1743760149735,1.09149,1832.5,1832.4,4.0358]
[1743760149936,1.09149,1832.5,1832.4,1.495]
[1743760150136,1.09149,1832.5,1832.4,2.58655]
[1743760151342,1.09149,1832.5,1832.4,1.495]
[1743760151841,1.09149,1832.5,1832.4,2.58655]
[1743760152043,1.09149,1832.5,1832.4,1.495]
[1743760152242,1.09155,1832.4,1832.3,3.21599717]
[1743760154634,1.09155,1832.4,1832.3,0.00819717]
[1743760154845,2.53795,1832.4,1832.3,0.00819717]
[1743760155642,1.09155,1832.4,1832.3,0.00819717]
[1743760158844,1.09155,1832.4,1832.3,1.09980717]
[1743760159141,3.503,1832.5,1832.3,3.21599717]
[1743760159342,4.59454,1832.5,1832.4,1.09155]
[1743760159538,4.59454,1832.5,1832.4,1.84055]
[1743760159731,4.59454,1832.5,1832.4,0.749]
[1743760161444,4.59454,1832.5,1832.4,1.5325]
[1743760161939,5.31704,1832.5,1832.4,1.5325]
[1743760166145,4.59454,1832.5,1832.4,1.5325]
[1743760167047,4.58954,1832.5,1832.4,1.5325]
[1743760172052,1.09154,1832.5,1832.4,2.62405]
[1743760175150,3.2078,1832.7,1832.6,1.09143]
[1743760175447,1.09125,1832.9,1832.8,1.09131]
[1743760175647,1.09125,1832.9,1832.8,4.29911]
[1743760175847,1.09125,1832.9,1832.8,6.54861]
[1743760176451,1.09125,1832.9,1832.8,5.4573]
[1743760176850,1.09125,1832.9,1832.8,2.2495]
[1743760177451,1.81405,1832.9,1832.8,2.2495]
[1743760178050,1.09125,1832.9,1832.8,5.4573]
[1743760178445,1.09125,1832.9,1832.8,2.2495]
[1743760180546,1.09145,1832.6,1832.4,7.56773]
[1743760180752,1.09145,1832.6,1832.5,2.9385]
[1743760181051,1.09145,1832.6,1832.5,4.02999]
[1743760183046,1.09145,1832.6,1832.5,2.9385]
[1743760184451,1.09145,1832.6,1832.5,1.4991]
[1743760185853,3.509,1832.6,1832.3,1.46089717]
[1743760186058,1.09155,1832.4,1832.3,2.94019717]
[1743760186957,1.84455,1832.4,1832.3,2.94019717]
[1743760187552,4.2274,1832.6,1832.3,2.94019717]
[1743760187760,1.0915,1832.5,1832.4,1.4793]
[1743760196874,2.5463,1832.5,1832.4,1.4793]
[1743760197670,1.0915,1832.5,1832.4,1.4793]
[1743760200475,2.4803,1832.5,1832.4,1.4793]
[1743760201070,4.29918,1832.7,1832.4,1.4793]
[1743760201273,4.29918,1832.7,1832.6,1.09141]
[1743760201274,1.09143,1832.7,1832.6,1.09141]
[1743760201571,1.09145,1832.6,1832.5,1.09144]
[1743760202278,6.93462,1832.8,1832.4,3.2078]
[1743760202474,1.09148,1832.6,1832.5,1.09146]
[1743760203186,1.09149,1832.5,1832.4,3.2078]
[1743760203775,1.09155,1832.4,1832.3,2.55244717]
[1743760203976,1.09155,1832.4,1832.3,1.46089717]
[1743760204375,1.09155,1832.4,1832.3,2.55250717]
[1743760204583,1.09155,1832.4,1832.3,1.46089717]
[1743760204785,1.09155,1832.4,1832.3,2.55250717]
[1743760205282,1.09155,1832.4,1832.3,1.46089717]
[1743760205483,1.09155,1832.4,1832.3,2.55250717]
[1743760205685,1.09155,1832.4,1832.3,1.46089717]
[1743760205881,1.09155,1832.4,1832.3,2.55250717]
[1743760206081,1.09155,1832.4,1832.3,1.46089717]
[1743760206385,1.09155,1832.4,1832.3,2.55250717]
[1743760206785,1.09155,1832.4,1832.3,1.46089717]
[1743760207278,1.09155,1832.4,1832.3,0.71199717]
[1743760207586,1.09155,1832.4,1832.3,1.80360717]
[1743760211085,1.09155,1832.4,1832.3,1.80356717]
[1743760212584,3.504,1832.5,1832.4,1.09155]
[1743760212782,4.59549,1832.5,1832.4,5.04865]
[1743760213286,4.59549,1832.5,1832.4,1.84085]
[1743760214287,4.59549,1832.5,1832.4,5.04865]
[1743760216189,3.2078,1832.9,1832.5,2.72873]
[1743760216396,1.09135,1832.8,1832.7,1.09131]
[1743760216596,1.09135,1832.8,1832.5,2.72873]
[1743760216597,1.09149,1832.5,1832.4,8.31703]
[1743760216817,1.09149,1832.5,1832.4,0.7493]
[1743760217294,2.55539,1832.5,1832.4,0.7493]
[1743760218593,2.55539,1832.5,1832.4,1.84085]
[1743760218791,1.82559,1832.5,1832.4,1.84085]
[1743760219297,1.09149,1832.5,1832.4,1.84085]
[1743760220395,1.78809,1832.5,1832.4,1.84085]
[1743760221497,1.78809,1832.5,1832.4,3.31375]
[1743760221997,1.78809,1832.5,1832.4,2.2222]
[1743760222189,1.78809,1832.5,1832.4,3.31375]
[1743760222797,1.78809,1832.5,1832.4,1.4729]
[1743760228194,1.09155,1832.4,1832.3,0.00819717]
[1743760228596,1.78855,1832.4,1832.3,0.00819717]
[1743760228796,1.78855,1832.4,1832.3,1.49499717]
[1743760230294,1.09155,1832.4,1832.3,1.49499717]
[1743760230495,1.09155,1832.4,1832.3,2.18889717]
[1743760230697,1.09155,1832.4,1832.3,3.28050717]
[1743760231096,1.09155,1832.4,1832.3,3.28045717]
[1743760233104,1.09155,1832.4,1832.3,2.18889717]
[1743760233403,1.09155,1832.4,1832.3,3.28050717]
[1743760233604,1.09155,1832.4,1832.3,2.18889717]
[1743760233905,1.09155,1832.4,1832.3,3.28050717]
[1743760234102,1.09155,1832.4,1832.3,2.18889717]
[1743760234507,1.09155,1832.4,1832.3,3.28050717]
[1743760237409,1.09155,1832.4,1832.3,6.48830717]
[1743760240706,1.09155,1832.4,1832.3,2.18889717]
[1743760241011,1.83815,1832.4,1832.3,2.18889717]
[1743760241213,3.31875,1832.4,1832.3,2.18889717]
[1743760242014,4.05295,1832.4,1832.3,2.18889717]
[1743760242809,1.09155,1832.4,1832.3,3.28050717]
[1743760243009,1.09155,1832.4,1832.3,2.18889717]
[1743760247312,1.09155,1832.4,1832.3,1.49499717]
[1743760247513,2.55975,1832.4,1832.3,0.00819717]
[1743760248014,2.55975,1832.4,1832.3,1.09980717]
[1743760248214,2.55975,1832.4,1832.3,3.21599717]
[1743760248413,2.55975,1832.4,1832.3,4.30760717]
[1743760249020,2.55975,1832.4,1832.3,3.21599717]
[1743760249218,2.55975,1832.4,1832.3,3.91849717]
[1743760249413,2.55975,1832.4,1832.3,2.13569717]
[1743760250118,2.55975,1832.4,1832.3,0.00819717]
[1743760253415,2.55975,1832.4,1832.3,1.54089717]
[1743760254516,1.09155,1832.4,1832.3,2.63250717]
[1743760254720,1.09155,1832.4,1832.3,1.54089717]
[1743760255316,1.83285,1832.4,1832.3,1.54089717]
[1743760256515,3.35705,1832.4,1832.3,1.54089717]
[1743760259518,3.35705,1832.4,1832.3,0.00819717]
[1743760261219,3.35705,1832.4,1832.3,1.09980717]
[1743760261416,5.31285,1832.4,1832.3,0.00819717]
[1743760261612,5.31285,1832.4,1832.3,1.79390717]
[1743760261812,5.31285,1832.4,1832.3,2.09419717]
[1743760265225,5.31285,1832.4,1832.3,3.18580717]
[1743760265420,3.48,1832.4,1832.3,3.18580717]
[1743760265826,4.57155,1832.4,1832.3,3.18580717]
[1743760267423,4.57155,1832.4,1832.3,2.09419717]
[1743760267920,5.32425,1832.4,1832.3,3.18580717]
[1743760268929,5.32425,1832.4,1832.3,2.09419717]
[1743760269230,5.32425,1832.4,1832.3,3.18580717]
[1743760269429,4.57155,1832.4,1832.3,3.18580717]
[1743760269630,4.57155,1832.4,1832.3,6.39360717]
[1743760270231,4.57155,1832.4,1832.3,3.18580717]
[1743760270933,4.57155,1832.4,1832.3,6.39360717]
[1743760271737,3.48,1832.4,1832.3,6.39360717]
[1743760272032,4.57155,1832.4,1832.3,6.39360717]
[1743760272329,4.57155,1832.4,1832.3,2.09419717]
[1743760272527,4.57155,1832.4,1832.3,3.18580717]
[1743760272836,4.57155,1832.4,1832.3,2.09419717]
[1743760273227,6.06605,1832.4,1832.3,1.40009717]
[1743760279543,1.09155,1832.4,1832.3,2.49170717]
[1743760279742,4.56855,1832.4,1832.3,1.40009717]
[1743760280141,4.56855,1832.4,1832.3,2.12719717]
[1743760280344,4.56855,1832.4,1832.3,3.21880717]
[1743760283346,4.56655,1832.4,1832.3,3.21880717]
[1743760284144,4.56655,1832.4,1832.3,2.12719717]
[1743760284345,4.56655,1832.4,1832.3,3.21880717]
[1743760284541,4.56555,1832.4,1832.3,3.21880717]
[1743760284747,1.09155,1832.4,1832.3,3.21880717]
[1743760285149,4.56555,1832.4,1832.3,2.12719717]
[1743760285647,4.56455,1832.4,1832.3,3.21880717]
[1743760289246,4.56455,1832.4,1832.3,6.42660717]
[1743760290448,3.473,1832.4,1832.3,6.42660717]
[1743760290751,4.56455,1832.4,1832.3,6.42660717]
[1743760291657,4.56455,1832.4,1832.3,3.21880717]
[1743760295350,6.05755,1832.4,1832.3,3.21880717]
[1743760299659,4.56455,1832.4,1832.3,3.21880717]
[1743760301157,3.473,1832.4,1832.3,3.21880717]
[1743760301361,4.56455,1832.4,1832.3,3.21880717]
[1743760303763,4.56455,1832.4,1832.3,2.12719717]
[1743760304367,4.56455,1832.4,1832.3,1.40009717]
[1743760306665,4.56455,1832.4,1832.3,2.15379717]
[1743760311470,4.56455,1832.4,1832.3,3.24540717]
[1743760312471,4.55755,1832.4,1832.3,3.24540717]
[1743760320474,3.466,1832.4,1832.3,3.24540717]
[1743760320674,2.72814,1832.9,1832.7,1.09132]
[1743760320871,1.83525,1832.8,1832.7,1.09132]
[1743760321072,5.45538,1833.2,1832.7,1.09132]
[1743760321073,0.43382362,1833.5,1833.0,2.72789]
[1743760321274,5.30787,1833.4,1833.3,1.09096]
[1743760321471,5.6459,1833.4,1833.1,2.8913]
[1743760321673,1.09103,1833.3,1833.2,1.4566]
[1743760321970,1.09103,1833.3,1832.7,7.56773]
[1743760321971,1.09131,1832.8,1832.7,7.56773]
[1743760322281,1.09141,1832.7,1832.6,1.09143]
[1743760322578,1.09141,1832.7,1832.6,2.53463]
[1743760322778,1.09141,1832.7,1832.6,1.4432]
[1743760323277,1.09141,1832.7,1832.6,2.53463]
[1743760323880,4.29874,1833.5,1832.6,17.26327]
[1743760324066,1.0908,1833.7,1833.5,1.09087]
[1743760324273,2.5757,1833.7,1833.6,1.4432]
[1743760324672,0.7639,1833.8,1833.6,1.4432]
[1743760325075,1.09077,1833.7,1833.6,1.4432]
[1743760326078,0.7639,1833.8,1833.7,1.09077]
[1743760326475,1.85461,1833.8,1833.6,2.53399]
[1743760326973,1.09071,1833.8,1833.7,2.59927]
[1743760327178,0.7578,1834.0,1833.9,1.09065]
[1743760327377,0.7578,1834.0,1833.8,3.29347]
[1743760327681,1.84842,1834.0,1833.9,1.5085]
[1743760327879,1.09057,1834.1,1833.9,1.5085]
[1743760328068,4.2932,1834.2,1833.9,4.7163]
[1743760328274,1.09059,1834.0,1833.9,4.7163]
[1743760328578,1.09054,1834.1,1834.0,1.09058]
[1743760328780,1.09054,1834.1,1834.0,1.5283]
[1743760329180,3.25304,1834.1,1834.0,1.5283]
[1743760330079,1.09083,1833.6,1833.5,3.2078]
[1743760330279,1.09083,1833.6,1833.5,4.7361]
[1743760330479,1.09083,1833.7,1833.6,1.09083]
[1743760330679,1.09083,1833.7,1833.6,1.5283]
[1743760331684,1.09083,1833.7,1833.6,2.61913]
[1743760331886,1.09083,1833.7,1833.6,1.5283]
[1743760334987,2.60683,1833.7,1833.6,1.5283]
[1743760335186,1.09089,1833.5,1833.4,0.00819717]
[1743760335480,7.84669,1833.5,1833.4,0.00819717]
[1743760335687,10.34669,1833.5,1833.4,0.00819717]
[1743760335883,11.09759,1833.5,1833.4,0.00819717]
[1743760337685,1.09113,1833.1,1833.0,1.4871]
[1743760337988,1.09119,1833.0,1832.9,3.2078]
[1743760338190,1.09119,1833.0,1832.9,1.498]
[1743760338988,1.09119,1833.0,1832.9,2.58925]
[1743760339285,3.55519717,1833.1,1832.9,1.498]
[1743760339589,4.64636717,1833.1,1833.0,2.213]
[1743760341293,1.09119,1833.0,1832.9,3.2078]
[1743760341493,3.37909,1833.0,1832.9,3.2078]
[1743760342092,3.37909,1833.0,1832.9,4.6743]
[1743760342996,1.84549,1833.0,1832.9,5.76555]
[1743760343293,1.09119,1833.0,1832.9,5.76555]
[1743760343489,1.09119,1833.0,1832.9,5.76549]
[1743760343696,1.09938717,1833.1,1833.0,1.09119]
[1743760343889,1.09938717,1833.1,1833.0,2.51359]
[1743760344191,1.09938717,1833.1,1833.0,1.4224]
[1743760347795,0.00819717,1833.1,1833.0,2.51359]
[1743760348093,1.09932717,1833.1,1833.0,2.51359]
[1743760348592,1.09932717,1833.1,1833.0,1.4224]
[1743760349794,1.09932717,1833.1,1833.0,3.27219]
[1743760351196,1.09932717,1833.1,1833.0,4.00579]
[1743760351493,1.09932717,1833.1,1833.0,2.9146]
[1743760351886,1.09932717,1833.1,1833.0,4.00579]
[1743760353297,0.00819717,1833.1,1833.0,4.00579]
[1743760353496,1.09932717,1833.1,1833.0,4.00579]
[1743760356895,1.09932717,1833.1,1833.0,7.21359]
[1743760357298,2.60082717,1833.1,1833.0,7.21359]
[1743760358601,2.60082717,1833.1,1833.0,4.00579]
[1743760359100,2.60082717,1833.1,1833.0,1.4224]
[1743760359400,3.35572717,1833.1,1833.0,1.4224]
[1743760360498,3.35572717,1833.1,1833.0,2.51359]
[1743760362398,1.85422717,1833.1,1833.0,2.51359]
[1743760364101,1.85422717,1833.1,1833.0,1.4224]
[1743760365308,3.38892717,1833.1,1833.0,1.4224]
[1743760371607,3.38892717,1833.1,1832.8,0.00819717]
[1743760371608,1.09125,1832.9,1832.8,0.00819717]
[1743760371911,4.60725,1832.9,1832.8,0.00819717]
[1743760372303,6.06945,1832.9,1832.8,0.00819717]
[1743760372699,1.09155,1832.4,1832.3,3.2078]
[1743760372908,1.09179,1832.0,1831.9,10.09196]
[1743760373106,1.09179,1832.0,1831.9,5.73203]
[1743760373308,1.09179,1832.0,1831.9,4.6402]
[1743760374112,3.53319717,1832.1,1831.9,6.031]
[1743760374310,3.53319717,1832.1,1832.0,2.48259]
[1743760374608,4.62492717,1832.1,1832.0,1.3908]
[1743760375025,1.09184,1831.9,1831.8,0.00819717]
[1743760375404,1.09184,1831.9,1831.8,1.39899717]
[1743760375613,1.81454,1831.9,1831.8,1.39899717]
[1743760376007,3.29754,1831.9,1831.8,1.39899717]
[1743760376705,3.29754,1831.9,1831.8,0.00819717]
[1743760377116,1.81454,1831.9,1831.8,0.00819717]
[1743760377818,3.24054,1831.9,1831.8,0.00819717]
[1743760379214,1.81454,1831.9,1831.8,0.00819717]
[1743760379914,3.34604,1831.9,1831.8,0.00819717]
[1743760381415,3.34604,1831.9,1831.8,1.48919717]
[1743760381606,1.81454,1831.9,1831.8,1.48919717]
[1743760382414,1.81454,1831.9,1831.8,0.00819717]
[1743760382812,4.61084,1831.9,1831.8,0.00819717]
[1743760383020,3.519,1831.9,1831.8,1.51109717]
[1743760383313,2.17819717,1832.1,1831.9,1.09184]
[1743760383507,2.17819717,1832.1,1832.0,1.5029]
[1743760383707,6.78992717,1832.1,1832.0,1.5029]
[1743760384116,6.78892717,1832.1,1832.0,1.5029]
[1743760384311,3.26992717,1832.1,1832.0,1.5029]
[1743760384515,6.78892717,1832.1,1832.0,1.5029]
[1743760387917,1.09184,1831.9,1831.8,0.00819717]
[1743760388117,1.09184,1831.9,1831.8,1.52939717]
[1743760390225,1.09184,1831.9,1831.8,2.62129717]
[1743760390620,6.72867717,1832.1,1832.0,1.09179]
[1743760390819,0.00819717,1832.1,1832.0,1.09179]
[1743760391023,1.09992717,1832.1,1832.0,2.58909]
[1743760391223,1.09992717,1832.1,1832.0,3.98309]
[1743760392422,1.09992717,1832.1,1832.0,2.8913]
[1743760393521,0.00819717,1832.1,1832.0,3.98309]
[1743760394026,1.09992717,1832.1,1832.0,3.98309]
[1743760394324,0.00819717,1832.1,1832.0,3.98309]
[1743760394525,1.09992717,1832.1,1832.0,3.98309]
[1743760395327,0.00819717,1832.1,1832.0,3.98309]
[1743760395721,1.09992717,1832.1,1832.0,3.98309]
[1743760396426,0.00819717,1832.1,1832.0,3.98309]
[1743760396724,1.09992717,1832.1,1832.0,3.98309]
[1743760397117,0.00819717,1832.1,1832.0,3.98309]
[1743760397625,1.09992717,1832.1,1832.0,3.98309]
[1743760398029,0.00819717,1832.1,1832.0,3.98309]
[1743760398729,0.00819717,1832.1,1832.0,6.48309]
[1743760398926,1.09992717,1832.1,1832.0,6.48309]
[1743760399530,0.00819717,1832.1,1832.0,6.48309]
[1743760399927,1.09992717,1832.1,1832.0,6.48309]
[1743760400925,0.00819717,1832.1,1832.0,6.48309]
[1743760401126,1.09992717,1832.1,1832.0,6.48309]
[1743760401436,1.09992717,1832.1,1832.0,3.98309]
[1743760401726,0.00819717,1832.1,1832.0,3.98309]
[1743760402228,1.09992717,1832.1,1832.0,3.98309]
[1743760402727,0.00819717,1832.1,1832.0,3.98309]
[1743760402929,1.09992717,1832.1,1832.0,3.98309]
[1743760403930,0.00819717,1832.1,1832.0,3.98309]
[1743760405018,1.09992717,1832.1,1832.0,3.98309]
[1743760405220,0.00819717,1832.1,1832.0,3.98309]
[1743760406227,0.00819717,1832.1,1832.0,6.48309]
[1743760408632,4.60252,1832.5,1832.4,1.09155]
[1743760409131,4.60252,1832.5,1832.4,3.24305]
[1743760409730,5.98842,1832.5,1832.4,3.24305]
[1743760411228,5.98842,1832.5,1832.4,2.54465]
[1743760411433,5.98842,1832.5,1832.4,1.4531]
[1743760412541,1.09161,1832.3,1832.2,4.9966]
[1743760412738,1.09161,1832.3,1832.2,6.4873]
[1743760414843,2.54301,1832.3,1832.2,4.6985]
[1743760415330,2.54301,1832.3,1832.2,5.79017]
[1743760416139,3.23761,1832.3,1832.2,5.79017]
[1743760416639,3.23761,1832.3,1832.2,4.6985]
[1743760418649,3.23761,1832.3,1832.2,5.79017]
[1743760419348,3.23761,1832.3,1832.2,4.6985]
[1743760420548,3.23761,1832.3,1832.2,5.79017]
[1743760422652,1.80725,1832.4,1832.3,1.09161]
[1743760422944,0.7157,1832.4,1832.3,2.49971]
[1743760423150,1.80725,1832.4,1832.3,2.49971]
[1743760423353,1.80725,1832.4,1832.3,3.23561]
[1743760423944,1.80725,1832.4,1832.3,2.144]
[1743760425146,1.09155,1832.4,1832.3,3.23561]
[1743760425355,1.09153,1832.5,1832.4,1.09151]
[1743760425551,1.09153,1832.5,1832.4,3.37141]
[1743760427450,1.09155,1832.4,1832.3,4.35993]
[1743760427651,5.36165,1832.4,1832.3,4.35993]
[1743760429455,1.09167,1832.2,1832.1,5.81339]
[1743760431854,3.22537,1832.3,1832.2,1.09167]
[1743760432053,3.22537,1832.3,1832.2,2.62367]
[1743760432653,3.22537,1832.3,1832.2,1.532]
[1743760433252,3.22537,1832.3,1832.2,2.62367]
[1743760436053,3.22537,1832.3,1832.2,1.532]
[1743760436356,3.22537,1832.3,1832.2,2.62367]
[1743760436658,3.22537,1832.3,1832.2,1.532]
[1743760436953,3.22537,1832.3,1832.2,2.62367]
[1743760437159,1.09965717,1832.6,1832.5,1.09149]
[1743760437859,1.09965717,1832.6,1832.5,2.55719]
[1743760438755,1.09965717,1832.6,1832.5,1.4657]
[1743760439857,1.09965717,1832.6,1832.5,2.55719]
[1743760440760,0.00819717,1832.6,1832.5,2.55719]
[1743760443257,1.09962717,1832.6,1832.5,2.55719]
[1743760444655,0.00819717,1832.6,1832.5,2.55719]
[1743760445357,1.09962717,1832.6,1832.5,2.55719]
[1743760445654,0.00819717,1832.6,1832.5,2.55719]
[1743760445853,1.09962717,1832.6,1832.5,2.55719]
[1743760448958,0.00819717,1832.6,1832.5,2.55719]
[1743760449951,1.09962717,1832.6,1832.5,2.55719]
[1743760455360,1.09962717,1832.6,1832.5,1.4657]
[1743760455759,4.60062717,1832.6,1832.5,1.4657]
[1743760455961,4.60062717,1832.6,1832.5,2.55719]
[1743760459662,1.09962717,1832.6,1832.5,2.55719]
[1743760460460,0.00819717,1832.6,1832.5,2.55719]
[1743760460662,1.09962717,1832.6,1832.5,2.55719]
[1743760461463,1.09962717,1832.6,1832.5,3.29249]
[1743760461666,1.81362717,1832.6,1832.5,3.29249]
[1743760462363,1.81362717,1832.6,1832.5,2.201]
[1743760462662,1.81362717,1832.6,1832.5,3.29249]
[1743760462965,3.34962717,1832.6,1832.5,1.4657]
[1743760463965,3.34962717,1832.6,1832.5,2.55719]
[1743760464166,0.00819717,1832.6,1832.5,2.55719]
[1743760464965,1.09962717,1832.6,1832.5,2.55719]
[1743760465165,0.00819717,1832.6,1832.5,2.55719]
[1743760466266,1.09962717,1832.6,1832.5,2.55719]
[1743760468762,1.09962717,1832.6,1832.5,5.76499]
[1743760497385,0.00819717,1832.6,1832.5,5.76499]
[1743760498582,1.09962717,1832.6,1832.5,5.76499]
[1743760498782,2.73685717,1832.6,1832.3,4.6135]
[1743760498993,2.73685717,1832.6,1832.3,6.44096]
[1743760498994,1.09155,1832.4,1832.3,6.44096]
[1743760499380,3.33305,1832.4,1832.3,6.44096]
[1743760502986,1.80585,1832.4,1832.3,6.44096]
[1743760504188,4.57163717,1832.6,1832.5,1.09149]
[1743760504786,4.57163717,1832.6,1832.5,1.79139]
[1743760507188,4.57163717,1832.6,1832.5,1.09149]
[1743760507390,6.00143717,1832.6,1832.5,1.09149]
[1743760507593,6.00143717,1832.6,1832.5,2.55049]
[1743760507791,6.00143717,1832.6,1832.5,1.459]
[1743760508092,12.86724717,1832.6,1832.1,7.56773]
[1743760508298,1.09167,1832.2,1832.1,1.459]
[1743760508595,1.09167,1832.2,1832.1,5.75853]
[1743760511399,1.09167,1832.2,1832.1,4.6668]
[1743760511793,1.09167,1832.2,1832.1,5.75853]
[1743760514901,1.09179,1832.0,1831.9,8.27093]
[1743760515101,1.09179,1832.0,1831.9,5.3172]
[1743760515396,1.09184,1831.9,1831.8,0.00819717]
[1743760515601,4.02054,1831.9,1831.8,0.00819717]
[1743760516397,1.0922,1831.4,1831.3,4.29999]
[1743760516592,1.0922,1831.4,1831.3,3.2078]
[1743760517095,1.0922,1831.4,1831.3,4.698]
[1743760517703,1.10027717,1831.5,1831.4,1.09214]
[1743760517901,0.00819717,1831.5,1831.4,2.58234]
[1743760518599,0.00819717,1831.5,1831.4,9.44227]
[1743760518900,1.0919,1831.9,1831.8,1.0919]
[1743760519103,1.0919,1831.9,1831.8,4.2997]
[1743760519703,1.0919,1831.9,1831.8,5.7859]
[1743760520300,1.10002717,1832.0,1831.9,1.09184]
[1743760520504,0.00819717,1832.0,1831.9,2.54044]
[1743760520706,1.09998717,1832.0,1831.9,2.54044]
[1743760521295,1.09998717,1832.0,1831.9,1.4486]
[1743760521704,1.09998717,1832.0,1831.9,2.54044]
[1743760522007,1.09998717,1832.0,1831.9,1.4486]
[1743760523708,1.09998717,1832.0,1831.9,2.54044]
[1743760524105,1.09998717,1832.0,1831.9,1.4486]
[1743760524406,1.81458717,1832.0,1831.9,1.4486]
[1743760524905,1.09184,1831.9,1831.8,3.2078]
[1743760525104,1.09196,1831.7,1831.6,8.65971]
[1743760527105,1.82806,1831.7,1831.6,5.45191]
[1743760527807,1.82806,1831.7,1831.6,4.35993]
[1743760528305,5.31306,1831.7,1831.6,4.35993]
[1743760529307,4.2211,1831.7,1831.6,1.09202]
[1743760529508,3.485,1831.7,1831.6,4.29982]
[1743760529712,1.09193,1831.8,1831.7,1.09196]
[1743760529905,1.09193,1831.8,1831.7,2.51916]
[1743760530307,5.0047,1831.9,1831.8,1.0919]
[1743760530514,1.09998717,1832.0,1831.9,1.09184]
[1743760530713,4.59398717,1832.0,1831.9,1.09184]
[1743760532408,1.09184,1831.9,1831.8,1.09187]
[1743760533212,1.09184,1831.9,1831.8,4.29967]
[1743760533509,1.09158,1832.4,1832.3,1.09161]
[1743760533901,1.09161,1832.3,1832.2,4.29942]
[1743760534305,0.7543,1832.5,1832.2,3.2078]
[1743760534514,5.34384,1832.5,1832.4,1.09155]
[1743760534716,4.2402,1832.6,1832.4,1.09155]
[1743760534909,1.09145,1832.6,1832.5,1.09149]
[1743760535404,1.09145,1832.6,1832.5,2.57519]
[1743760538315,1.09145,1832.6,1832.5,1.4837]
[1743760538616,1.09145,1832.6,1832.5,2.57519]
[1743760541709,1.09145,1832.6,1832.5,4.08729]
[1743760546316,5.98393,1832.7,1832.6,1.09143]
[1743760546520,5.98393,1832.7,1832.6,1.4534]
[1743760547823,1.09161,1832.3,1832.2,4.36812717]
[1743760548124,4.58761,1832.3,1832.2,0.00819717]
[1743760548609,4.58761,1832.3,1832.2,1.09986717]
[1743760548817,4.58761,1832.3,1832.2,2.56046717]
[1743760548818,3.496,1832.3,1832.2,2.56046717]
[1743760550115,3.496,1832.3,1832.2,5.76826717]
[1743760550717,4.58761,1832.3,1832.2,5.76826717]
[1743760555031,3.496,1832.3,1832.2,5.76826717]
[1743760555534,4.58761,1832.3,1832.2,5.76826717]
[1743760555729,4.58761,1832.3,1832.2,1.46879717]
[1743760556130,4.58761,1832.3,1832.2,0.00819717]
[1743760556730,4.58761,1832.3,1832.2,1.48899717]
[1743760557435,4.58761,1832.3,1832.2,2.58066717]
[1743760558835,4.58761,1832.3,1832.2,1.48899717]
[1743760559835,4.58761,1832.3,1832.2,2.58066717]
[1743760560036,4.58761,1832.3,1832.2,1.48899717]
[1743760560934,4.58761,1832.3,1832.2,2.58066717]
[1743760562033,1.09161,1832.3,1832.2,2.58066717]
[1743760562336,1.09161,1832.3,1832.2,6.53866717]
[1743760568635,1.09161,1832.3,1832.2,4.69679717]
[1743760569238,1.09161,1832.3,1832.2,5.78846717]
[1743760570335,4.5816,1832.4,1832.3,1.09161]
[1743760570636,1.09161,1832.3,1832.2,4.30762717]
[1743760572341,1.09161,1832.3,1832.2,0.00819717]
[1743760573242,1.09161,1832.3,1832.2,1.09986717]
[1743760573442,1.09161,1832.3,1832.2,4.30766717]
[1743760574334,3.49,1832.4,1832.3,1.09161]
[1743760574335,4.5816,1832.4,1832.3,1.09161]
[1743760574736,1.09161,1832.3,1832.2,3.21599717]
[1743760575237,1.09161,1832.3,1832.2,4.30766717]
[1743760575535,1.09161,1832.3,1832.2,3.21599717]
[1743760576341,1.09161,1832.3,1832.2,4.30766717]
[1743760576742,1.09161,1832.3,1832.2,3.21599717]
[1743760577038,1.09161,1832.3,1832.2,0.00819717]
[1743760577239,3.27011,1832.3,1832.2,0.00819717]
[1743760577843,1.09161,1832.3,1832.2,1.09986717]
[1743760581041,1.09161,1832.3,1832.2,0.76049717]
[1743760581241,1.09161,1832.3,1832.2,1.85216717]
[1743760581435,1.09161,1832.3,1832.2,0.76049717]
[1743760581636,1.09161,1832.3,1832.2,3.26726717]
[1743760582144,1.09161,1832.3,1832.2,2.17559717]
[1743760583644,1.09161,1832.3,1832.2,3.26726717]
[1743760584943,1.09161,1832.3,1832.2,3.26722717]
[1743760585448,1.09161,1832.3,1832.2,2.17559717]
[1743760585645,1.09161,1832.3,1832.2,1.42329717]
[1743760585844,3.33461,1832.3,1832.2,1.42329717]
[1743760589649,1.82251,1832.3,1832.2,1.42329717]
[1743760590548,1.09161,1832.3,1832.2,1.42329717]
[1743760591252,1.09161,1832.3,1832.2,2.51496717]
[1743760591650,1.09161,1832.3,1832.2,1.42329717]
[1743760592651,1.09161,1832.3,1832.2,2.51496717]
[1743760593052,4.58158,1832.4,1832.3,1.09161]
[1743760593257,4.58158,1832.4,1832.3,2.51941]
[1743760593455,4.58158,1832.4,1832.3,3.23691]
[1743760593655,4.58158,1832.4,1832.3,2.1453]
[1743760594057,4.58158,1832.4,1832.3,3.23691]
[1743760594555,1.4827,1832.6,1832.3,2.1453]
[1743760594762,4.56554,1832.5,1832.4,2.1338]
[1743760594954,4.56554,1832.5,1832.4,3.22535]
[1743760595550,4.56554,1832.5,1832.4,2.1338]
[1743760595751,1.09154,1832.5,1832.4,3.22535]
[1743760600157,3.2078,1833.3,1832.4,7.8416]
[1743760600366,0.7552,1833.2,1833.1,1.09113]
[1743760600656,2.1529,1833.4,1832.8,3.2078]
[1743760600657,2.1529,1833.4,1833.0,1.09119]
[1743760600859,0.7552,1833.3,1832.9,2.1504]
[1743760601053,0.7552,1833.3,1832.9,1.4515]
[1743760601054,1.09119,1833.0,1832.9,1.4515]